Cogmind - Beta 15 @@@ ROGUE MODE // 2025.05.25 @ 19:08:25 Player: Skysub Result: Destroyed by UO-7GE(R) with Subdweller Beam Cannon Performance ------------- Evolutions (0) 0 Regions Visited (2) 400 Robots Destroyed (14) 70 Value Destroyed (295) 295 Prototype IDs (0) 0 Alien Tech Used (0) 0 Bonus (0) 0 TOTAL SCORE: 765 Bonus ------- None Cogmind --------- Core Integrity 0/250 Matter 297/300 Energy 92/100 System Corruption 0% Temperature Cool (9) Movement Core (50) Location -10/Subcaves Parts ------- > --- POWER (1) -------- (None) > --- PROPULSION (2) --- (None) > --- UTILITY (2) ------ Structural Scanner > --- WEAPON (2) ------- (None) > --- INVENTORY (5) ---- Ion Engine Subdweller Power Source Aluminum Leg Small Storage Unit Hacking Suite Peak State ------------ > --- POWER ------------ Ion Engine > --- PROPULSION ------- Light Treads Light Treads > --- UTILITY ---------- Small Storage Unit Large Storage Unit > --- WEAPON ----------- Light Assault Rifle Grenade Launcher > --- INVENTORY -------- Ion Engine Aluminum Leg Aluminum Leg Wheel Wheel Hacking Suite Small Laser Light Assault Rifle [Rating: 8] Favorites ----------- Power Ion Engine Engine Ion Engine Propulsion Light Treads Treads Light Treads Leg Aluminum Leg Utility Large Storage Unit Device Structural Scanner Storage Large Storage Unit Weapon Light Assault Rifle Energy Gun Small Laser Ballistic Gun Light Assault Rifle Launcher Grenade Launcher Build | -11 -10 -10 ------- Run | Yrd Mat Sub Slots Evolved . | . . . Power . | . . . Propulsion . | . . . Utility . | . . . Weapon . | . . . Parts Attached 11 | 6 3 2 Power 1 | 1 . . Engine 1 | 1 . . Core . | . . . Reactor . | . . . Propulsion 3 | 2 . 1 Treads 2 | 2 . . Leg 1 | . . 1 Wheel . | . . . Hover . | . . . Flight . | . . . Utility 3 | 1 2 . Device 1 | . 1 . Storage 2 | 1 1 . Processor . | . . . Hackware . | . . . Protection . | . . . Artifact . | . . . Weapon 4 | 2 1 1 Energy Gun 1 | . . 1 Energy Cannon . | . . . Ballistic Gun 2 | 2 . . Ballistic Cannon . | . . . Launcher 1 | . 1 . Special Weapon . | . . . Impact Weapon . | . . . Slashing Weapon . | . . . Piercing Weapon . | . . . Special Melee Weapon . | . . . Unidentified Prototypes . | . . . Parts Lost 8 | . . 8 Power 1 | . . 1 Propulsion 3 | . . 3 Utility . | . . . Weapon 4 | . . 4 Highest Loss Streak 7 | . . 7 To Critical Strikes . | . . . Average Backups 8 | 4 8 9 Power 1 | . 1 1 Propulsion 3 | 2 4 3 Utility 1 | . 1 2 Weapon 1 | . 1 1 Tool/Special . | . . . Unused Backups 6 | . . 6 Power 2 | . . 2 Propulsion 3 | . . 3 Utility 1 | . . 1 Weapon . | . . . Tool/Special . | . . . Average Slot Usage (%) 95 | . 89 98 Engine 13 | . 14 13 Treads 27 | . 27 27 Device 10 | . 4 14 Storage 13 | . 14 13 Ballistic Gun 22 | . 21 23 Launcher 4 | . 6 3 Peak Build Rating 8 | 6 8 8 Average Rating 7 | 5 7 7 On Entrance 4 | . 6 8 Naked Turns . | . . . Heaviest Build 30 | 12 30 30 Greatest Support 40 | 40 40 40 Greatest Overweight (x) 3 | 3 . . Average Overweight (x) . | . . . Largest Inventory Capacity 15 | 8 15 15 Average Capacity 13 | 7 10 14 Most Carried 10 | 6 9 10 Average Carried 8 | 4 8 9 Final Capacity 15 | 8 15 5 Final Carried 9 | 6 9 5 Class Distribution -------------------- 100% | Mutant Dominant Class ---------------- Mutant | -10/Materials Mutant | -10/Subcaves Resources | -11 -10 -10 ----------- Run | Yrd Mat Sub Matter Collected 479 | 207 177 95 Remotely . | . . . Salvage Created 305 | . 180 125 Parts 24 | . 17 7 Haulers Intercepted . | . . . Recyclers Shooed 1 | . 1 . Parts Field Recycled . | . . . Retrieved Matter . | . . . Parts Self-Destructed 13 | . . 13 Prevented . | . . . Kills | -11 -10 -10 ------- Run | Yrd Mat Sub Combat Hostiles Destroyed 11 | . 8 3 Guns 8 | . 6 2 AOE 3 | . 2 1 Classes Destroyed 5 | . 3 2 Builder 2 | . 2 . Turret 1 | . . 1 Swarmer 6 | . 6 . Grunt 3 | . 2 1 Subdweller 2 | . . 2 Best Kill Streak 4 | . 4 1 Combat Bots Only 3 | . 3 1 Max Kills in Single Turn 2 | . 2 1 Gunslinging 1 | . 1 . Exploded 1 | . 1 1 Melee . | . . . Uniques/NPCs Destroyed . | . . . Combat | -11 -10 -10 -------- Run | Yrd Mat Sub Hostile Shots Fired 82 | . 41 41 Missed 22 | . 12 10 Hits 60 | . 29 31 Projectile 60 | . 29 31 Critical Strikes 2 | . . 2 Damage Taken 1017 | . 294 723 Core 256 | . 36 220 Absorbed by Shields . | . . . Core Remaining (%) 100 | 100 . . Volleys Fired 53 | . 29 24 Largest 2 | . 2 2 Hottest 60 | . 50 60 Shots Fired 96 | . 52 44 Gun 85 | . 48 37 Cannon . | . . . Launcher 11 | . 4 7 Special . | . . . Kinetic 74 | . 48 26 Thermal 11 | . . 11 Explosive 11 | . 4 7 Electromagnetic . | . . . Robot Hit Streak 11 | . 4 11 Robot Miss Streak 5 | . 5 2 Penetration Max . | . . . Secondary Targets 3 | . 3 . Max Gunslinging Chain 1 | . 1 . Shots Hit Robots 59 | . 26 33 Core Hits 29 | . 19 10 Critical Kills . | . . . Critical Parts Destroyed . | . . . Critical Strikes . | . . . Melee Attacks . | . . . Impact . | . . . Slashing . | . . . Piercing . | . . . Sneak Attacks . | . . . Combat Hostiles . | . . . Follow-up Attacks . | . . . Damage Inflicted 895 | . 397 498 Guns 495 | . 227 268 Cannons . | . . . Explosions 395 | . 165 230 Melee . | . . . Ramming 5 | . 5 . Kinetic 383 | . 227 156 Thermal 112 | . . 112 Explosive 395 | . 165 230 Electromagnetic . | . . . Impact . | . . . Slashing . | . . . Piercing . | . . . Highest Corruption . | . . . Average Corruption . | . . . Corruption Purged . | . . . Corruption Blocked . | . . . Overload Shots . | . . . Overflow Damage . | . . . Projectiles . | . . . Explosions . | . . . Melee . | . . . Knockbacks . | . . . Impact . | . . . Kinetic . | . . . Secondary . | . . . Self-Inflicted Damage 5 | . 5 . Shots 1 | . 1 . Rammed 4 | . 4 . Targets Rammed 4 | . 4 . Kicked . | . . . Crushed . | . . . Highest Temperature 27 | . 27 . Average Temperature 11 | . 11 . Received Heat Transfer 204 | . 72 132 Siege Activations . | . . . Martial Activations . | . . . Shielding Activations . | . . . Robots Disrupted . | . . . Combat Hostiles . | . . . Robots Corrupted . | . . . Combat Hostiles . | . . . Parts Fried . | . . . Impact Corruptions . | . . . Robots Melted . | . . . Combat Hostiles . | . . . Parts Melted . | . . . Heat Transferred 250 | . . 250 Parts Sabotaged . | . . . Parts Stolen . | . . . Parts Stripped . | . . . Power Chain Reactions . | . . . Alert | -11 -10 -10 ------- Run | Yrd Mat Sub Maximum Alert Level . | . . . Low Security (%) 100 | 100 100 . Level 1 . | . . . Level 2 . | . . . Level 3 . | . . . Level 4 . | . . . Level 5 . | . . . High Security . | . . . Max Security . | . . . Peak Influence 137 | . 137 . Initial . | . . . Average 42 | . 49 . Influence Increases 359 | . 289 70 Destroy 0b10 Robot/C 200 | . 160 40 Destroy 0b10 Robot/NC 10 | . 10 . Destroy Leader 30 | . 30 . Successful Hack 24 | . 24 . Select Force Hacks 30 | . 30 . Destroy Structure 20 | . 20 . Lose Combat Pursuer 45 | . 15 30 Influence Decreases 359 | . 234 125 Entered New Map 27 | . . 27 Time Decay 332 | . 234 98 Squads Dispatched 2 | . 2 . Investigation 1 | . 1 . Extermination . | . . . Reinforcement 1 | . 1 . Assault . | . . . Garrison . | . . . Intercept . | . . . Searches Triggered . | . . . Construction Impeded . | . . . Haulers Reinforced . | . . . Active Scanning Responses . | . . . Cargo Convoy Interrupts . | . . . Stealth | -11 -10 -10 --------- Run | Yrd Mat Sub Distress Signals 4 | . 4 . Communications Jammed . | . . . Distress Signals . | . . . Times Spotted 28 | . 17 11 Peak Tracking Total 4 | . 4 4 Tactical Retreats 2 | . 1 1 Traps | -11 -10 -10 ------- Run | Yrd Mat Sub Traps Triggered 2 | . 2 . Indirectly . | . . . Trap Hack Attempts . | . . . Triggered . | . . . Disarmed . | . . . Reprogrammed 6 | . 6 . Reused . | . . . Traps Extracted . | . . . Installed . | . . . Triggered . | . . . Machines | -11 -10 -10 ---------- Run | Yrd Mat Sub Machines Disabled 3 | . . 3 Max in Single Turn 2 | . . 2 Machines Repaired . | . . . Machines Dismantled . | . . . Machines Sabotaged . | . . . Overloaded Fab Kills . | . . . Hacking | -11 -10 -10 --------- Run | Yrd Mat Sub Machines Accessed 5 | . 5 . Terminals 4 | . 4 . Fabricators . | . . . Repair Stations . | . . . Recycling Units 1 | . 1 . Scanalyzers . | . . . Garrison Access . | . . . Total Hacks 24 | . 24 . Successful 11 | . 11 . Failed 13 | . 13 . Catastrophic . | . . . Database Lockouts . | . . . Manual 17 | . 17 . Terminals 19 | . 19 . Fabricators . | . . . Repair Stations . | . . . Recycling Units 5 | . 5 . Scanalyzers . | . . . Garrison Access . | . . . Terminal Hacks 5 | . 5 . Branch Access Points 1 | . 1 . Alert Level 1 | . 1 . Reprogram Traps 1 | . 1 . Registered Components 1 | . 1 . Zone Layout 1 | . 1 . Fabricator Hacks . | . . . Repair Station Hacks . | . . . Recycling Unit Hacks 1 | . 1 . Report Inventory 1 | . 1 . Scanalyzer . | . . . Garrison Access Hacks . | . . . Unauthorized Hacks 5 | . 5 . Terminals 3 | . 3 . Botnet 3 | . 3 . Fabricators . | . . . Repair Stations . | . . . Recycling Units 2 | . 2 . Reject 1 | . 1 . Tunnel 1 | . 1 . Scanalyzers . | . . . Garrison Access . | . . . Data Cores Recovered 1 | . 1 . Used . | . . . Hacking Detections 5 | . 5 . Full Trace Events . | . . . Feedback Events . | . . . Feedback Blocked . | . . . Robot Schematics Acquired . | . . . Robots Built . | . . . Authchips . | . . . Time . | . . . Total Robot Build Rating . | . . . Part Schematics Acquired . | . . . Parts Built . | . . . Authchips . | . . . Time . | . . . Total Part Build Rating . | . . . Parts Repaired . | . . . Time . | . . . Parts Recycled . | . . . Recycled Matter . | . . . Retrieved Matter . | . . . Retrieved Components . | . . . Parts Scanalyzed . | . . . Part Schematics Acquired . | . . . Parts Damaged . | . . . Bothacking | -11 -10 -10 ------------ Run | Yrd Mat Sub Used RIF Installer . | . . . Robots Hacked . | . . . Non-combat . | . . . Combat . | . . . Robot Hacks Applied . | . . . Relay Couplers Released . | . . . Fabnet Peak Effective % . | . . . Robots Rewired . | . . . Allies Hacked . | . . . Hacks Repelled . | . . . Allies | -11 -10 -10 -------- Run | Yrd Mat Sub Total Allies . | . . . Largest Group . | . . . Highest-Rated Group . | . . . Highest-Rated Ally . | . . . Total Orders . | . . . Ally Attacks . | . . . Total Damage . | . . . Kills . | . . . Allies Corrupted . | . . . Allies Melted . | . . . Intel | -11 -10 -10 ------- Run | Yrd Mat Sub Active Infowar (turns) 1452 | . 252 1200 Structural 1452 | . 252 1200 Robot Analysis Total . | . . . Derelict Logs Recovered 1 | . . 1 Drone Launches . | . . . Drone Recoveries . | . . . Exploration | -11 -10 -10 ------------- Run | Yrd Mat Sub Turns Passed 2129 | 132 797 1200 Spaces Moved 1208 | 72 443 693 Core 13 | 12 . 1 Treads 1195 | 60 443 692 Legs . | . . . Wheels . | . . . Hover . | . . . Flight . | . . . Fastest Speed 50 | 50 160 50 Average Speed 159 | 158 160 159 Slowest Speed 200 | 200 160 160 Overloaded Moves . | . . . Propulsion Burnouts . | . . . Robots Hopped . | . . . Potential Cave-ins . | . . . Cave-ins Triggered . | . . . Exploration Rate (%) 35 | 6 68 31 Regions Visited 2 Branch Regions 1 Pre-discovered Areas 2 | . 1 1 Known Exits Taken . | . . . Unknown Exits Taken 2 | 1 1 . Scrap Searched 1 | . . 1 Spaces Dug 7 | . 7 . Terrain Destroyed 40 | . 25 15 Melee . | . . . Projectile . | . . . AOE 40 | . 25 15 Terrain Rammed . | . . . Walls Destroyed . | . . . Machines Disabled . | . . . Actions | -11 -10 -10 --------- Run | Yrd Mat Sub Total 1318 | 87 484 747 Wait 29 | 4 . 25 Move 1206 | 71 442 693 Hop . | . . . Pick Up 9 | 6 2 1 Fast Attach 11 | 6 5 . Attach 3 | . . 3 Detach 1 | . 1 . Swap 1 | . 1 . Drop 1 | . . 1 Fire 53 | . 29 24 Melee . | . . . Ram . | . . . Kick . | . . . Crush 4 | . 4 . Escape Stasis . | . . . Rewire . | . . . Trap . | . . . Miscellaneous . | . . . Route ------- -11/Scrapyard -10/Materials (discovered 4 exits: [*Mat] / *Min x2 / [*Sub]) -10/Subcaves (discovered 1 exit: [*Rec]) History --------- Turn | Location | Event 10 | -11/Scrapyard | Discovered new exit (range 16) 133 | -11/Scrapyard | Entered Materials 134 | -10/Materials | Met a group of wandering Federalists 305 | -10/Materials | Build established: Mutant 430 | -10/Materials | Identified exit to Mines 537 | -10/Materials | Discovered new exit (range 15) 916 | -10/Materials | Discovered new exit (range 10) 930 | -10/Materials | Entered Subcaves 931 | -10/Subcaves | Continued accompanying wandering Federalists (5) 931 | -10/Subcaves | Approached by a straggling Scientist 952 | -10/Subcaves | Discovered new exit (range 16) 985 | -10/Subcaves | Lost 3 allies 1039 | -10/Subcaves | Learned 4 Materials zone layouts 1492 | -10/Subcaves | Learned location of Zion (-7) 1492 | -10/Subcaves | Met a Zionite searching for "candidates" 2121 | -10/Subcaves | Core integrity fell below 50% 2127 | -10/Subcaves | Core integrity fell below 20% 2130 | -10/Subcaves | Destroyed by UO-7GE(R) with Subdweller Beam Cannon Last Messages --------------- Searching scrap... Found Shrapnel Trap. Found 51 Matter. 40-46S(z): "Hey you! It's really dangerous down here, I feel that you could die at any moment. For your health and safety might I suggest a trip to Zion?" World map updated: -7/Zion. Subatomizers dissect the Ion Engine. Subatomizers dissect the Aluminum Leg. PZ-0OF(u) builds Twisted Machinery. Lgt. Treads destroyed. Lgt. Assault Rifle destroyed. Lgt. Treads destroyed. Ion Engine destroyed. Lgt. Assault Rifle destroyed. Aluminum Leg destroyed. Z1-D2D(R) destroyed. Sml. Laser destroyed. Dropped Lrg. Storage Unit. Map ----- +----------------------------------------------------+ | ???????????????????????????????????????????? | | ???????????????????????????????????????????? | | ???????????????????????????????????????????? | | ???????????????????????????????????????????? | | ???????????????????????????????????????????? | | ???????????????????????????????????????????? | | ???????????????????????????????????????????? | | ???????????????????????????????????????????? | | ???????????????????????????????????????????? | | ???????????????????????????????????????????? | | ???????????????????? ??????????????????????? | | ???????????????????? ??????????????????????? | | ???????????????????? ????????????????????? | | ???????????????????? ##????????????????????? | | ???????????????????? ##????????????????????? | | ???????????????????? #????????????????????? | | ????????????????? ??????????????????????? | | ?????????????????### ??????????????????????? | | ????????????????###; ??????????????????????? | | ????????????????### ??????????????????????? | | ????????????????# ? #####???????????????? | | ???????????????###!& #####???????????????? | | ???????????????###R%### ##???????????????? | | ???????????????## & ## ###??????????????? | | ???????????????## # ###??????????????? | | ???????????????### @ ##??????????????? | | ????????????????## ! # ##??????????????? | | ????????????????## = # ###??????????????? | | ???????????????### ####??????????????? | | ???????????????### ###???????????????? | | ???????????????## ###???????????????? | | ???????????????## ##???????????????? | | ???????????????## ###???????????????? | | ???????????????## ###???????????????? | | ???????????????## ###????????????????? | | ??????????????### "" #####??????????????? | | ??????????????### """ ####????????????### | | ??????????????##"""""""" "############## ## | | ??????????????##"""" ################ | | ??????????????## " " ### % #### # | | ??????????????## ## # ## ## ## | | ??????????????## " ### ### ## # | | ??????????????## """ ##### # # #### # | | ??????????????##""""""#### #### ######## | | ??????????????##" "" ### ####### ###### | | ??????????????##"? ??## ### # ## | | ?????????????????? ??### # | | ????????????????? ??#### | | ?????????????????? ? ???#### # | | ??????????????????????????### ##### | +----------------------------------------------------+ Best States ------------- Heat Dissipation 25 Energy Generation 10 Energy Capacity 250 Matter Stores 300 Matter Capacity 300 Sight Range 16 Terrain Scan Density 10 Evasion (%) 40 Recoil Reduction 2 Item Schematics ----------------- None Robot Schematics ------------------ None Fabricated ------------ Nothing Repaired ---------- Nothing Alien Tech Used ----------------- None Achievements -------------- None Challenges ------------ None Game ------ Seed AntigravPartitionVibroblade Manual? 0 Play Time 00:11:19 Cumulative 98.4 hours Start 2025.05.25 @ 18:57:32 End 2025.05.25 @ 19:08:25 Sessions 1 Manual Loads 0 Difficulty Rogue Special Mode None Game No. 100 Rogue 100 Adventurer 0 Explorer 0 Win Type - Total 2 Types 1/0/0/1/0/0/0/0/0/0 Lore% 54 Gallery% 53 Achievement% 47 Wizard Run 0 Options --------- Layout 1 ASCII 0 Keyboard 1 Movement Arrows Keybinds 0 Fullscreen 1 Font 24/Smallcaps Map View 50x35 Zoom Use 0% Tactical HUD 0 Map Filters NONE Filters NONE Steam 1 RUN: ff72612e-c874-4693-9dc1-0315a4b0fda6